[Event "*** Titled Tuesday Blitz"]
[Site "Chess.com"]
[Date "2021.02.16"]
[Round "1"]
[White "SirStrateg"]
[Black "JuliaEfremova"]
[Result "1-0"]
[WhiteElo "2538"]
[BlackElo "2206"]
[TimeControl "180+1"]
[EndTime "10:06:22 PST"]
[Termination "SirStrateg won by resignation"]

1. d4 {[%clk 0:03:00.3]} 1... Nf6 {[%clk 0:02:58]} 2. Nf3 {[%clk 0:03:00]} 2...
g6 {[%clk 0:02:58.1]} 3. Bf4 {[%clk 0:02:58.7]} 3... Bg7 {[%clk 0:02:57.6]} 4.
e3 {[%clk 0:02:58.8]} 4... b6 {[%clk 0:02:55.5]} 5. a4 {[%clk 0:02:58.2]} 5...
a5 {[%clk 0:02:51.6]} 6. Nbd2 {[%clk 0:02:55.4]} 6... Bb7 {[%clk 0:02:50.6]} 7.
c3 {[%clk 0:02:51.7]} 7... O-O {[%clk 0:02:49.9]} 8. Bd3 {[%clk 0:02:51.3]} 8...
d5 {[%clk 0:02:47.9]} 9. O-O {[%clk 0:02:49.2]} 9... c5 {[%clk 0:02:47.7]} 10.
Ne5 {[%clk 0:02:47.2]} 10... Nc6 {[%clk 0:02:47.3]} 11. Bb5 {[%clk 0:02:42.7]}
11... Nxe5 {[%clk 0:02:40.5]} 12. Bxe5 {[%clk 0:02:39.4]} 12... Nd7 {[%clk
0:02:37.8]} 13. Bg3 {[%clk 0:02:20]} 13... Ba6 {[%clk 0:02:32.6]} 14. Bxa6
{[%clk 0:02:15.8]} 14... Rxa6 {[%clk 0:02:30.6]} 15. Qb3 {[%clk 0:02:14.4]}
15... Qa8 {[%clk 0:02:23.3]} 16. Qb5 {[%clk 0:02:11.3]} 16... Rd8 {[%clk
0:02:22.2]} 17. Bc7 {[%clk 0:02:08.9]} 17... Ra7 {[%clk 0:02:13.4]} 18. Bxd8
{[%clk 0:02:08.7]} 18... Qxd8 {[%clk 0:02:14.3]} 19. Rfd1 {[%clk 0:02:03.3]}
19... c4 {[%clk 0:02:09.5]} 20. Qxd5 {[%clk 0:02:00.2]} 20... Rc7 {[%clk
0:02:00.2]} 21. Nxc4 {[%clk 0:01:52.8]} 21... Qc8 {[%clk 0:02:00.1]} 22. Nd2
{[%clk 0:01:46.5]} 22... e5 {[%clk 0:01:55.3]} 23. Nf3 {[%clk 0:01:43.9]} 23...
exd4 {[%clk 0:01:49.5]} 24. exd4 {[%clk 0:01:41.9]} 24... Nf6 {[%clk 0:01:47.7]}
25. Qb5 {[%clk 0:01:39.1]} 25... Qb7 {[%clk 0:01:44.2]} 26. Re1 {[%clk
0:01:37.7]} 26... h6 {[%clk 0:01:43.5]} 27. h3 {[%clk 0:01:37.6]} 27... Rd7
{[%clk 0:01:41.2]} 28. Re2 {[%clk 0:01:33.2]} 28... Rd5 {[%clk 0:01:40.2]} 29.
Qc4 {[%clk 0:01:33]} 29... Kh7 {[%clk 0:01:38.6]} 30. Rae1 {[%clk 0:01:32.1]}
30... Rd7 {[%clk 0:01:38.3]} 31. Ne5 {[%clk 0:01:31.5]} 31... Rc7 {[%clk
0:01:37.7]} 32. Qb3 {[%clk 0:01:29.1]} 32... Nd5 {[%clk 0:01:34.8]} 33. Nd3
{[%clk 0:01:18.8]} 33... Bf6 {[%clk 0:01:29.2]} 34. Re8 {[%clk 0:01:09.9]} 34...
Kg7 {[%clk 0:01:27]} 35. R8e2 {[%clk 0:01:01.8]} 35... Kh7 {[%clk 0:01:26.1]}
36. Qb5 {[%clk 0:00:59.3]} 36... Bg7 {[%clk 0:01:21.9]} 37. Qe8 {[%clk
0:00:56.6]} 37... Rc8 {[%clk 0:01:19.1]} 38. Qe4 {[%clk 0:00:55.7]} 38... Rc7
{[%clk 0:01:08.2]} 39. Nf4 {[%clk 0:00:53.6]} 39... Nxf4 {[%clk 0:01:06.5]} 40.
Qxf4 {[%clk 0:00:54]} 40... Rd7 {[%clk 0:01:02.9]} 41. Qf3 {[%clk 0:00:49.9]}
41... Qc8 {[%clk 0:00:58.6]} 42. Re7 {[%clk 0:00:44.6]} 42... Rxe7 {[%clk
0:00:58.7]} 43. Rxe7 {[%clk 0:00:44.2]} 43... Qc4 {[%clk 0:00:59.6]} 44. Qxf7
{[%clk 0:00:42.7]} 1-0

[Event "*** Titled Tuesday Blitz"]
[Site "Chess.com"]
[Date "2021.02.16"]
[Round "1"]
[White "BigAl"]
[Black "jefferyx"]
[Result "0-1"]
[WhiteElo "2466"]
[BlackElo "2979"]
[TimeControl "180+1"]
[EndTime "10:06:23 PST"]
[Termination "jefferyx won by resignation"]

1. e4 {[%clk 0:02:59.8]} 1... c5 {[%clk 0:02:59.5]} 2. Nc3 {[%clk 0:03:00.1]}
2... Nc6 {[%clk 0:02:57.5]} 3. g3 {[%clk 0:02:59.9]} 3... g6 {[%clk 0:02:56.9]}
4. Bg2 {[%clk 0:03:00.8]} 4... Bg7 {[%clk 0:02:57.6]} 5. d3 {[%clk 0:03:01.3]}
5... d6 {[%clk 0:02:57.3]} 6. Be3 {[%clk 0:03:01.9]} 6... Nf6 {[%clk 0:02:57.4]}
7. h3 {[%clk 0:03:00.9]} 7... Rb8 {[%clk 0:02:56.7]} 8. Qd2 {[%clk 0:03:01.2]}
8... b5 {[%clk 0:02:56.5]} 9. Bh6 {[%clk 0:03:00.6]} 9... Bxh6 {[%clk
0:02:55.7]} 10. Qxh6 {[%clk 0:02:59.9]} 10... Qa5 {[%clk 0:02:55.3]} 11. Nf3
{[%clk 0:02:33.4]} 11... b4 {[%clk 0:02:23.2]} 12. Nd5 {[%clk 0:02:30.8]} 12...
b3+ {[%clk 0:02:22.8]} 13. c3 {[%clk 0:02:27.9]} 13... bxa2 {[%clk 0:02:22.8]}
14. Nxf6+ {[%clk 0:02:07.7]} 14... exf6 {[%clk 0:02:23.7]} 15. Qg7 {[%clk
0:02:02.7]} 15... Rf8 {[%clk 0:01:53.6]} 16. Qxf6 {[%clk 0:02:01.5]} 16... Rxb2
{[%clk 0:01:53.3]} 17. O-O {[%clk 0:02:01.5]} 17... Qd8 {[%clk 0:01:52.9]} 18.
Qg7 {[%clk 0:01:54]} 18... Be6 {[%clk 0:01:51.6]} 19. c4 {[%clk 0:01:45.2]}
19... Qb8 {[%clk 0:01:44.4]} 20. e5 {[%clk 0:01:29.9]} 20... Nxe5 {[%clk
0:01:42.7]} 21. Nxe5 {[%clk 0:01:29.6]} 21... dxe5 {[%clk 0:01:43.6]} 22. Bc6+
{[%clk 0:01:14.5]} 22... Ke7 {[%clk 0:01:43.5]} 23. Qh6 {[%clk 0:00:48]} 23...
Rb1 {[%clk 0:01:40.6]} 24. Qh4+ {[%clk 0:00:41.5]} 24... f6 {[%clk 0:01:39.6]}
25. Bb5 {[%clk 0:00:29.3]} 25... a6 {[%clk 0:01:38.4]} 26. Rfxb1 {[%clk
0:00:26.1]} 26... axb1=Q+ {[%clk 0:01:37.9]} 27. Rxb1 {[%clk 0:00:26.9]} 27...
axb5 {[%clk 0:01:38.5]} 28. Rxb5 {[%clk 0:00:27.6]} 28... Qd6 {[%clk 0:01:36.2]}
29. Qxh7+ {[%clk 0:00:22.1]} 29... Bf7 {[%clk 0:01:36.2]} 30. Rb7+ {[%clk
0:00:20.8]} 30... Ke8 {[%clk 0:01:35.9]} 31. Qh4 {[%clk 0:00:18.4]} 31... Qc6
{[%clk 0:01:21.7]} 32. Rb8+ {[%clk 0:00:17.9]} 32... Ke7 {[%clk 0:01:21.7]} 33.
Rb5 {[%clk 0:00:17.2]} 33... Rd8 {[%clk 0:01:17.9]} 34. Rb3 {[%clk 0:00:10.8]}
34... Qf3 {[%clk 0:01:11.9]} 35. Qh6 {[%clk 0:00:04.4]} 35... Qd1+ {[%clk
0:01:10.9]} 36. Kh2 {[%clk 0:00:03.6]} 36... Qxb3 {[%clk 0:01:11.8]} 37. Qe3
{[%clk 0:00:03.4]} 37... Rd4 {[%clk 0:01:10.6]} 0-1

[Event "*** Titled Tuesday Blitz"]
[Site "Chess.com"]
[Date "2021.02.16"]
[Round "1"]
[White "VALPARAISO37"]
[Black "esteban062000"]
[Result "1-0"]
[WhiteElo "2510"]
[BlackElo "2149"]
[TimeControl "180+1"]
[EndTime "10:06:25 PST"]
[Termination "VALPARAISO37 won by resignation"]

1. d4 {[%clk 0:02:59.8]} 1... Nf6 {[%clk 0:02:57.6]} 2. c4 {[%clk 0:02:59.2]}
2... e6 {[%clk 0:02:55.4]} 3. Nc3 {[%clk 0:02:59.1]} 3... Bb4 {[%clk 0:02:54.2]}
4. a3 {[%clk 0:02:59.4]} 4... Bxc3+ {[%clk 0:02:34.6]} 5. bxc3 {[%clk
0:02:58.9]} 5... Nc6 {[%clk 0:02:28.5]} 6. e3 {[%clk 0:02:58.1]} 6... d6 {[%clk
0:02:21.5]} 7. Bd3 {[%clk 0:02:56.5]} 7... e5 {[%clk 0:02:18.9]} 8. Ne2 {[%clk
0:02:55.2]} 8... e4 {[%clk 0:02:09.4]} 9. Bc2 {[%clk 0:02:54.6]} 9... Bg4 {[%clk
0:02:06.6]} 10. h3 {[%clk 0:02:53.4]} 10... Bh5 {[%clk 0:01:59.4]} 11. Rb1
{[%clk 0:02:52.8]} 11... Rb8 {[%clk 0:01:36.8]} 12. g4 {[%clk 0:02:48]} 12...
Bg6 {[%clk 0:01:36.5]} 13. Nf4 {[%clk 0:02:48.3]} 13... Qd7 {[%clk 0:01:32.2]}
14. Ba4 {[%clk 0:02:46.2]} 14... d5 {[%clk 0:01:20.6]} 15. g5 {[%clk 0:02:43.1]}
15... dxc4 {[%clk 0:01:07.7]} 16. gxf6 {[%clk 0:02:40.1]} 16... gxf6 {[%clk
0:01:06.8]} 17. d5 {[%clk 0:02:38.7]} 17... b5 {[%clk 0:00:43.9]} 18. dxc6
{[%clk 0:02:36.3]} 18... Qf5 {[%clk 0:00:35.9]} 19. Qd5 {[%clk 0:02:31.1]} 19...
O-O {[%clk 0:00:33.2]} 20. Rxb5 {[%clk 0:02:28.9]} 20... Rxb5 {[%clk 0:00:27]}
21. Bxb5 {[%clk 0:02:25.3]} 21... Qc8 {[%clk 0:00:21.6]} 22. Rg1 {[%clk
0:02:22.8]} 22... Kg7 {[%clk 0:00:20.1]} 23. Nh5+ {[%clk 0:02:21.6]} 23... Kh8
{[%clk 0:00:20.5]} 24. Nf4 {[%clk 0:02:16.2]} 24... Rd8 {[%clk 0:00:19.9]} 25.
Qc5 {[%clk 0:02:08.9]} 25... Re8 {[%clk 0:00:17.1]} 26. Bxc4 {[%clk 0:02:06.3]}
26... Re5 {[%clk 0:00:17]} 27. Qxa7 {[%clk 0:02:03.7]} 27... Qd8 {[%clk
0:00:17.4]} 28. Rxg6 {[%clk 0:01:58.3]} 28... hxg6 {[%clk 0:00:16.9]} 29. Qd4
{[%clk 0:01:55.9]} 29... Qa8 {[%clk 0:00:15.4]} 30. Qd7 {[%clk 0:01:46.9]} 30...
Qf8 {[%clk 0:00:15.5]} 31. Qxf7 {[%clk 0:01:44.2]} 31... Qxf7 {[%clk 0:00:15.2]}
32. Bxf7 {[%clk 0:01:43.4]} 32... Kg7 {[%clk 0:00:16.1]} 33. Bxg6 {[%clk
0:01:41.9]} 33... Rc5 {[%clk 0:00:17]} 34. Bxe4 {[%clk 0:01:41.3]} 34... Rxc3
{[%clk 0:00:16.7]} 35. Kd2 {[%clk 0:01:41.4]} 35... Rb3 {[%clk 0:00:16.8]} 36.
Kc2 {[%clk 0:01:40.8]} 36... Rb5 {[%clk 0:00:16.9]} 37. a4 {[%clk 0:01:39.8]}
37... Ra5 {[%clk 0:00:16.9]} 38. Kb3 {[%clk 0:01:38.9]} 38... f5 {[%clk
0:00:16.4]} 39. Bd5 {[%clk 0:01:37.3]} 39... Ra8 {[%clk 0:00:16.1]} 40. Bb2+
{[%clk 0:01:37.5]} 40... Kf8 {[%clk 0:00:14.9]} 41. Bf6 {[%clk 0:01:36.7]} 41...
Rb8+ {[%clk 0:00:14.6]} 42. Kc3 {[%clk 0:01:37.1]} 42... Re8 {[%clk 0:00:14.6]}
43. Be6 {[%clk 0:01:35]} 43... Ra8 {[%clk 0:00:12.1]} 44. Kb3 {[%clk 0:01:34.2]}
44... Rb8+ {[%clk 0:00:12.3]} 45. Ka3 {[%clk 0:01:34.3]} 45... Ra8 {[%clk
0:00:12.8]} 46. h4 {[%clk 0:01:31.6]} 46... Ra6 {[%clk 0:00:11.8]} 47. Bd5
{[%clk 0:01:30.7]} 47... Ra5 {[%clk 0:00:11.5]} 48. Bb3 {[%clk 0:01:29]} 48...
Rc5 {[%clk 0:00:10.5]} 49. Ne6+ {[%clk 0:01:28.6]} 49... Ke8 {[%clk 0:00:09.8]}
50. Nxc5 {[%clk 0:01:29.2]} 1-0

[Event "*** Titled Tuesday Blitz"]
[Site "Chess.com"]
[Date "2021.02.16"]
[Round "1"]
[White "PaulfromSPb"]
[Black "chesslh19"]
[Result "1-0"]
[WhiteElo "2571"]
[BlackElo "2257"]
[TimeControl "180+1"]
[EndTime "10:06:27 PST"]
[Termination "PaulfromSPb won by resignation"]

1. e4 {[%clk 0:03:00.9]} 1... e5 {[%clk 0:02:59.3]} 2. Nf3 {[%clk 0:02:59.8]}
2... Nf6 {[%clk 0:02:59.3]} 3. Nxe5 {[%clk 0:02:59]} 3... d6 {[%clk 0:02:59.4]}
4. Nf3 {[%clk 0:02:58.6]} 4... Nxe4 {[%clk 0:02:59.6]} 5. d4 {[%clk 0:02:58.7]}
5... d5 {[%clk 0:02:59.6]} 6. Bd3 {[%clk 0:02:59.3]} 6... Be7 {[%clk 0:02:57.4]}
7. O-O {[%clk 0:02:59.4]} 7... Nc6 {[%clk 0:02:57.4]} 8. c4 {[%clk 0:03:00.3]}
8... Nb4 {[%clk 0:02:57.2]} 9. Be2 {[%clk 0:02:58.3]} 9... O-O {[%clk
0:02:54.7]} 10. Nc3 {[%clk 0:02:58]} 10... Bf5 {[%clk 0:02:54.6]} 11. a3 {[%clk
0:02:54.9]} 11... Nxc3 {[%clk 0:02:54.6]} 12. bxc3 {[%clk 0:02:54.9]} 12... Nc6
{[%clk 0:02:54.6]} 13. Bf4 {[%clk 0:02:53.6]} 13... dxc4 {[%clk 0:02:15.5]} 14.
Bxc4 {[%clk 0:02:50.4]} 14... Bd6 {[%clk 0:01:59.5]} 15. Bg3 {[%clk 0:02:47]}
15... Bxg3 {[%clk 0:01:51.8]} 16. hxg3 {[%clk 0:02:47.9]} 16... Qd6 {[%clk
0:01:33.2]} 17. Qd2 {[%clk 0:02:37.7]} 17... Rfe8 {[%clk 0:01:28]} 18. Rfe1
{[%clk 0:02:35.2]} 18... Bg6 {[%clk 0:01:23.8]} 19. Qb2 {[%clk 0:02:29.9]} 19...
b6 {[%clk 0:00:40.9]} 20. Bb5 {[%clk 0:02:27.3]} 20... Rad8 {[%clk 0:00:35.6]}
21. Ne5 {[%clk 0:02:24.7]} 21... Nxe5 {[%clk 0:00:29.4]} 22. Bxe8 {[%clk
0:02:23.7]} 22... Nd3 {[%clk 0:00:29.3]} 23. Qb5 {[%clk 0:02:20.4]} 23... Nxe1
{[%clk 0:00:22.5]} 24. Rxe1 {[%clk 0:02:21.3]} 24... h6 {[%clk 0:00:17.3]} 25.
Bc6 {[%clk 0:02:20]} 25... Kh7 {[%clk 0:00:16]} 26. Bf3 {[%clk 0:02:19.3]} 26...
Qxa3 {[%clk 0:00:15.5]} 27. Re3 {[%clk 0:02:14]} 27... Qd6 {[%clk 0:00:15.2]}
28. Qa6 {[%clk 0:02:13.6]} 28... c5 {[%clk 0:00:13.8]} 29. dxc5 {[%clk
0:02:12.3]} 29... Qxc5 {[%clk 0:00:13.8]} 30. Qxa7 {[%clk 0:02:09.9]} 30... Rd6
{[%clk 0:00:13.7]} 31. Qa8 {[%clk 0:02:08]} 31... Re6 {[%clk 0:00:11.4]} 32.
Rxe6 {[%clk 0:02:05.4]} 32... fxe6 {[%clk 0:00:12.3]} 33. Qa1 {[%clk 0:02:05.6]}
33... Bf5 {[%clk 0:00:10.5]} 34. Qe1 {[%clk 0:02:04.8]} 34... Qd6 {[%clk
0:00:09.5]} 35. Qe3 {[%clk 0:02:03.2]} 35... Qc5 {[%clk 0:00:08.4]} 36. Qd2
{[%clk 0:02:02.8]} 36... Qc7 {[%clk 0:00:07]} 37. g4 {[%clk 0:02:02.5]} 37...
Bg6 {[%clk 0:00:07]} 38. Qd4 {[%clk 0:02:03.1]} 38... Qc5 {[%clk 0:00:06.2]} 39.
Qd2 {[%clk 0:02:02.5]} 39... Qc7 {[%clk 0:00:06.3]} 40. g3 {[%clk 0:02:02.6]}
40... Bf7 {[%clk 0:00:05.9]} 41. Be4+ {[%clk 0:02:02.3]} 41... Bg6 {[%clk
0:00:05.2]} 42. Bxg6+ {[%clk 0:02:02]} 42... Kxg6 {[%clk 0:00:06.1]} 43. Qd3+
{[%clk 0:02:02.9]} 43... Kf7 {[%clk 0:00:06.1]} 44. Qe3 {[%clk 0:02:01.1]} 44...
Qc5 {[%clk 0:00:05.8]} 45. Qf4+ {[%clk 0:02:01.2]} 45... Kg8 {[%clk 0:00:05.4]}
46. c4 {[%clk 0:02:01.3]} 46... Qe7 {[%clk 0:00:04.6]} 47. Qb8+ {[%clk
0:02:00.6]} 47... Kh7 {[%clk 0:00:04.7]} 48. Qxb6 {[%clk 0:02:00.6]} 48... Qf7
{[%clk 0:00:05.5]} 49. Qe3 {[%clk 0:01:59.8]} 49... Qe7 {[%clk 0:00:05.4]} 50.
c5 {[%clk 0:01:59.9]} 50... Qd7 {[%clk 0:00:05.6]} 51. Qe4+ {[%clk 0:02:00.2]}
51... Kg8 {[%clk 0:00:05.1]} 52. c6 {[%clk 0:02:01.1]} 52... Qd6 {[%clk
0:00:05]} 53. Qc4 {[%clk 0:02:01.1]} 53... Kf7 {[%clk 0:00:05]} 54. c7 {[%clk
0:02:00]} 54... Qd1+ {[%clk 0:00:05.9]} 55. Kg2 {[%clk 0:02:00]} 1-0

[Event "*** Titled Tuesday Blitz"]
[Site "Chess.com"]
[Date "2021.02.16"]
[Round "1"]
[White "dozer80"]
[Black "GMJustin"]
[Result "1-0"]
[WhiteElo "2615"]
[BlackElo "2316"]
[TimeControl "180+1"]
[EndTime "10:06:28 PST"]
[Termination "dozer80 won on time"]

1. e4 {[%clk 0:03:00.9]} 1... e5 {[%clk 0:02:53.7]} 2. Nc3 {[%clk 0:02:59.6]}
2... Nf6 {[%clk 0:02:42.3]} 3. g3 {[%clk 0:02:59.5]} 3... d5 {[%clk 0:02:30.5]}
4. exd5 {[%clk 0:03:00.4]} 4... Nxd5 {[%clk 0:02:30.2]} 5. Bg2 {[%clk
0:03:00.9]} 5... Nxc3 {[%clk 0:02:28.6]} 6. bxc3 {[%clk 0:03:01.8]} 6... Nc6
{[%clk 0:02:21]} 7. Nf3 {[%clk 0:03:01.4]} 7... Bc5 {[%clk 0:02:05.4]} 8. O-O
{[%clk 0:03:00.2]} 8... O-O {[%clk 0:02:05]} 9. d3 {[%clk 0:03:00.3]} 9... Bg4
{[%clk 0:01:49.7]} 10. Rb1 {[%clk 0:02:58.4]} 10... Qd7 {[%clk 0:01:38.3]} 11.
Re1 {[%clk 0:02:32.7]} 11... Rad8 {[%clk 0:01:27.8]} 12. Qe2 {[%clk 0:02:14.8]}
12... Rfe8 {[%clk 0:01:23.3]} 13. Qe4 {[%clk 0:02:13.4]} 13... Bb6 {[%clk
0:01:11]} 14. Bg5 {[%clk 0:01:58.5]} 14... f6 {[%clk 0:01:07.7]} 15. Be3 {[%clk
0:01:58.4]} 15... Be6 {[%clk 0:00:59.6]} 16. c4 {[%clk 0:01:56.6]} 16... Bf5
{[%clk 0:00:41.9]} 17. Qh4 {[%clk 0:01:55.1]} 17... e4 {[%clk 0:00:29.1]} 18.
Nd2 {[%clk 0:01:21.7]} 18... Bxe3 {[%clk 0:00:25.1]} 19. Rxe3 {[%clk 0:01:20.2]}
19... exd3 {[%clk 0:00:22.4]} 20. Bd5+ {[%clk 0:01:19.9]} 20... Kh8 {[%clk
0:00:19.2]} 21. cxd3 {[%clk 0:01:10.4]} 21... Rxe3 {[%clk 0:00:18.2]} 22. fxe3
{[%clk 0:01:11.3]} 22... Bxd3 {[%clk 0:00:16.2]} 23. Rxb7 {[%clk 0:01:10.1]}
23... Ne5 {[%clk 0:00:13.6]} 24. Qd4 {[%clk 0:00:55.4]} 24... Qf5 {[%clk
0:00:09.4]} 25. Rxc7 {[%clk 0:00:49.1]} 25... Be2 {[%clk 0:00:03.6]} 26. Be4
{[%clk 0:00:38.3]} 1-0

[Event "*** Titled Tuesday Blitz"]
[Site "Chess.com"]
[Date "2021.02.16"]
[Round "1"]
[White "Guzman70"]
[Black "goldihouse"]
[Result "1-0"]
[WhiteElo "2237"]
[BlackElo "2527"]
[TimeControl "180+1"]
[EndTime "10:06:28 PST"]
[Termination "Guzman70 won by checkmate"]

1. e4 {[%clk 0:02:49.9]} 1... e6 {[%clk 0:02:59.7]} 2. d4 {[%clk 0:02:38.2]}
2... d5 {[%clk 0:03:00.6]} 3. exd5 {[%clk 0:02:38.3]} 3... exd5 {[%clk
0:03:00.2]} 4. Nf3 {[%clk 0:02:37.3]} 4... Bg4 {[%clk 0:03:00.3]} 5. c4 {[%clk
0:02:33.6]} 5... Bb4+ {[%clk 0:02:59.7]} 6. Nc3 {[%clk 0:02:33.1]} 6... Nf6
{[%clk 0:02:59.7]} 7. cxd5 {[%clk 0:02:32.2]} 7... O-O {[%clk 0:02:58.9]} 8. Bd2
{[%clk 0:02:31.7]} 8... Nxd5 {[%clk 0:02:55.7]} 9. Be2 {[%clk 0:02:31.1]} 9...
Nc6 {[%clk 0:02:51.3]} 10. O-O {[%clk 0:02:30.3]} 10... Re8 {[%clk 0:02:38.8]}
11. a3 {[%clk 0:02:22.5]} 11... Bf8 {[%clk 0:02:37]} 12. h3 {[%clk 0:02:17.8]}
12... Bh5 {[%clk 0:02:33.5]} 13. Nxd5 {[%clk 0:02:17]} 13... Qxd5 {[%clk
0:02:32.8]} 14. Be3 {[%clk 0:02:15]} 14... Rad8 {[%clk 0:02:30.8]} 15. Rc1
{[%clk 0:02:13.9]} 15... a6 {[%clk 0:02:07.6]} 16. b4 {[%clk 0:02:12.2]} 16...
Bg6 {[%clk 0:01:48.4]} 17. Bc4 {[%clk 0:02:09.2]} 17... Qd6 {[%clk 0:01:28]} 18.
d5 {[%clk 0:02:02.5]} 18... Ne5 {[%clk 0:01:26.2]} 19. Bc5 {[%clk 0:01:58.7]}
19... Nxf3+ {[%clk 0:01:17.6]} 20. Qxf3 {[%clk 0:01:57.9]} 20... Qe5 {[%clk
0:01:13.9]} 21. Bxf8 {[%clk 0:01:55.7]} 21... Kxf8 {[%clk 0:01:14.4]} 22. Rfd1
{[%clk 0:01:49.1]} 22... Qd6 {[%clk 0:01:13.9]} 23. Bd3 {[%clk 0:01:47.7]} 23...
Re7 {[%clk 0:01:10.8]} 24. Bxg6 {[%clk 0:01:47.2]} 24... hxg6 {[%clk 0:01:11.7]}
25. g3 {[%clk 0:01:42.7]} 25... Re5 {[%clk 0:01:10]} 26. Kg2 {[%clk 0:01:42.4]}
26... Rde8 {[%clk 0:01:09]} 27. Qc3 {[%clk 0:01:38.9]} 27... R8e7 {[%clk
0:01:08.2]} 28. Qc5 {[%clk 0:01:38.5]} 28... Re2 {[%clk 0:01:07.9]} 29. Qxd6
{[%clk 0:01:37]} 29... cxd6 {[%clk 0:01:08.8]} 30. Rc8+ {[%clk 0:01:35.6]} 30...
Re8 {[%clk 0:01:09.2]} 31. Rc7 {[%clk 0:01:34.2]} 31... Rb8 {[%clk 0:01:08.3]}
32. Rdc1 {[%clk 0:01:33]} 32... Ree8 {[%clk 0:01:01.9]} 33. Rd7 {[%clk
0:01:32.4]} 33... Red8 {[%clk 0:01:02.1]} 34. Rcc7 {[%clk 0:01:32.4]} 34... Rxd7
{[%clk 0:01:01.2]} 35. Rxd7 {[%clk 0:01:33.3]} 35... Rc8 {[%clk 0:01:00]} 36.
Rxd6 {[%clk 0:01:33.3]} 36... Ke7 {[%clk 0:00:46.1]} 37. Rb6 {[%clk 0:01:32.9]}
37... Rb8 {[%clk 0:00:46.1]} 38. a4 {[%clk 0:01:31.9]} 38... Kd7 {[%clk
0:00:45.2]} 39. a5 {[%clk 0:01:32.1]} 39... Kc7 {[%clk 0:00:43]} 40. d6+ {[%clk
0:01:29]} 40... Kd7 {[%clk 0:00:43.4]} 41. Kf3 {[%clk 0:01:28.9]} 41... Ke6
{[%clk 0:00:43.1]} 42. Kf4 {[%clk 0:01:28.8]} 42... f6 {[%clk 0:00:42.8]} 43. h4
{[%clk 0:01:28.7]} 43... Rd8 {[%clk 0:00:39.3]} 44. Rxb7 {[%clk 0:01:27.9]}
44... Rxd6 {[%clk 0:00:39]} 45. Rxg7 {[%clk 0:01:27.2]} 45... Rd4+ {[%clk
0:00:39.1]} 46. Kf3 {[%clk 0:01:27.5]} 46... Rxb4 {[%clk 0:00:39.6]} 47. Rxg6
{[%clk 0:01:27.9]} 47... Kf5 {[%clk 0:00:39]} 48. Rg7 {[%clk 0:01:26.7]} 48...
Rb3+ {[%clk 0:00:39.4]} 49. Kg2 {[%clk 0:01:25.5]} 49... Ra3 {[%clk 0:00:40.3]}
50. h5 {[%clk 0:01:24.4]} 50... Rxa5 {[%clk 0:00:39.4]} 51. h6 {[%clk
0:01:24.7]} 51... Ke6 {[%clk 0:00:40]} 52. h7 {[%clk 0:01:24.5]} 52... Rh5
{[%clk 0:00:40.4]} 53. g4 {[%clk 0:01:24]} 53... Rh6 {[%clk 0:00:40.4]} 54. f4
{[%clk 0:01:23.8]} 54... a5 {[%clk 0:00:39.1]} 55. Ra7 {[%clk 0:01:23.3]} 55...
a4 {[%clk 0:00:37.9]} 56. g5 {[%clk 0:01:23.7]} 56... fxg5 {[%clk 0:00:38.1]}
57. Ra6+ {[%clk 0:01:22.6]} 57... Kf5 {[%clk 0:00:38.4]} 58. Rxh6 {[%clk
0:01:22]} 58... a3 {[%clk 0:00:39.1]} 59. h8=Q {[%clk 0:01:22.2]} 59... a2
{[%clk 0:00:39.2]} 60. Rf6+ {[%clk 0:01:22.3]} 60... Kg4 {[%clk 0:00:40.1]} 61.
Qh3# {[%clk 0:01:20.8]} 1-0

[Event "*** Titled Tuesday Blitz"]
[Site "Chess.com"]
[Date "2021.02.16"]
[Round "1"]
[White "Problematique_99"]
[Black "ram1zan"]
[Result "0-1"]
[WhiteElo "2439"]
[BlackElo "2877"]
[TimeControl "180+1"]
[EndTime "10:06:30 PST"]
[Termination "ram1zan won by checkmate"]

1. e4 {[%clk 0:02:58.1]} 1... Nf6 {[%clk 0:02:59.3]} 2. Nc3 {[%clk 0:02:56.3]}
2... d5 {[%clk 0:02:59]} 3. exd5 {[%clk 0:02:56.5]} 3... Nxd5 {[%clk 0:02:59.9]}
4. Qf3 {[%clk 0:02:56.3]} 4... Nb6 {[%clk 0:02:57.9]} 5. a4 {[%clk 0:02:50.8]}
5... a5 {[%clk 0:02:49]} 6. Nh3 {[%clk 0:02:44.7]} 6... Nc6 {[%clk 0:02:43.5]}
7. Bb5 {[%clk 0:02:44.3]} 7... Bd7 {[%clk 0:02:36.4]} 8. O-O {[%clk 0:02:21.1]}
8... e5 {[%clk 0:02:32.2]} 9. Re1 {[%clk 0:02:16.4]} 9... Ne7 {[%clk 0:02:32.1]}
10. Rxe5 {[%clk 0:02:06]} 10... f6 {[%clk 0:02:23.8]} 11. Re1 {[%clk 0:01:59.9]}
11... c6 {[%clk 0:02:17.6]} 12. Bd3 {[%clk 0:01:57.7]} 12... Qc7 {[%clk
0:02:12.2]} 13. b3 {[%clk 0:01:53.1]} 13... O-O-O {[%clk 0:02:10.9]} 14. Ba3
{[%clk 0:01:53]} 14... Ned5 {[%clk 0:02:10.3]} 15. Bxf8 {[%clk 0:01:50.3]} 15...
Rhxf8 {[%clk 0:02:11.2]} 16. Nxd5 {[%clk 0:01:44]} 16... Nxd5 {[%clk 0:02:12.1]}
17. Be4 {[%clk 0:01:31.4]} 17... g5 {[%clk 0:02:12.1]} 18. Qg3 {[%clk
0:01:19.1]} 18... Nb6 {[%clk 0:02:01.2]} 19. Qxc7+ {[%clk 0:01:10.2]} 19... Kxc7
{[%clk 0:02:02.1]} 20. Bxh7 {[%clk 0:01:01.5]} 20... Bxh3 {[%clk 0:01:52.1]} 21.
gxh3 {[%clk 0:01:00.4]} 21... Rxd2 {[%clk 0:01:52.3]} 22. Re7+ {[%clk
0:01:00.1]} 22... Kb8 {[%clk 0:01:51]} 23. Rae1 {[%clk 0:00:53.3]} 23... Nd5
{[%clk 0:01:38.8]} 24. Rd7 {[%clk 0:00:48.2]} 24... Rh8 {[%clk 0:00:54.9]} 25.
Bf5 {[%clk 0:00:43.8]} 25... Rh4 {[%clk 0:00:45.2]} 26. c4 {[%clk 0:00:37.6]}
26... Rf4 {[%clk 0:00:44.1]} 27. Be4 {[%clk 0:00:23.7]} 27... f5 {[%clk
0:00:38.9]} 28. Bg2 {[%clk 0:00:19.7]} 28... Rfxf2 {[%clk 0:00:38.2]} 29. Bh1
{[%clk 0:00:17.6]} 29... Nf4 {[%clk 0:00:38.1]} 30. Rxd2 {[%clk 0:00:16.1]}
30... Nxh3# {[%clk 0:00:38]} 0-1